[Event "*** Titled Tuesday Blitz"]
[Site "Chess.com"]
[Date "2019.09.03"]
[Round "5"]
[White "Roman_Ovetchkin"]
[Black "Parhamov"]
[Result "0-1"]
[WhiteElo "2742"]
[BlackElo "2907"]
[TimeControl "180+2"]
[EndTime "16:06:11 PDT"]
[Termination "Parhamov won by resignation"]

1. d4 {[%clk 0:03:01.9]} 1... e6 {[%clk 0:03:00.5]} 2. e4 {[%clk 0:02:55.2]}
2... d5 {[%clk 0:03:02.4]} 3. exd5 {[%clk 0:02:56.4]} 3... Qxd5 {[%clk
0:03:00.5]} 4. Nf3 {[%clk 0:02:53.2]} 4... Nf6 {[%clk 0:02:57.8]} 5. Bd3 {[%clk
0:02:49.7]} 5... c5 {[%clk 0:02:58.3]} 6. Nc3 {[%clk 0:02:49.8]} 6... Qd8 {[%clk
0:02:57.7]} 7. Bg5 {[%clk 0:02:40.5]} 7... h6 {[%clk 0:02:54.2]} 8. Bxf6 {[%clk
0:02:37.2]} 8... gxf6 {[%clk 0:02:56.1]} 9. d5 {[%clk 0:02:31.9]} 9... Bg7
{[%clk 0:02:54.1]} 10. Qe2 {[%clk 0:02:29.7]} 10... O-O {[%clk 0:02:54.8]} 11.
dxe6 {[%clk 0:02:25.2]} 11... Bxe6 {[%clk 0:02:54.9]} 12. O-O-O {[%clk
0:02:24.1]} 12... Qa5 {[%clk 0:02:56.1]} 13. Bc4 {[%clk 0:02:22.1]} 13... Bxc4
{[%clk 0:02:56]} 14. Qxc4 {[%clk 0:02:22.5]} 14... Nc6 {[%clk 0:02:57.9]} 15.
Rd5 {[%clk 0:02:18.6]} 15... Qb4 {[%clk 0:02:56.4]} 16. Qxb4 {[%clk 0:02:14.7]}
16... cxb4 {[%clk 0:02:57.4]} 17. Ne4 {[%clk 0:02:14.7]} 17... Rfe8 {[%clk
0:02:56.8]} 18. Ng3 {[%clk 0:02:13.7]} 18... Rad8 {[%clk 0:02:55.6]} 19. Rhd1
{[%clk 0:02:13.1]} 19... Rxd5 {[%clk 0:02:55.9]} 20. Rxd5 {[%clk 0:02:14.1]}
20... Bf8 {[%clk 0:02:57.8]} 21. Rd7 {[%clk 0:02:09.9]} 21... Re7 {[%clk
0:02:57.5]} 22. Rxe7 {[%clk 0:02:07.7]} 22... Bxe7 {[%clk 0:02:59.4]} 23. Kd2
{[%clk 0:02:07.4]} 23... Kh7 {[%clk 0:02:57.8]} 24. Kd3 {[%clk 0:01:52.1]} 24...
Bf8 {[%clk 0:02:54.3]} 25. Ke4 {[%clk 0:01:49.6]} 25... Bc5 {[%clk 0:02:52.6]}
26. Kf5 {[%clk 0:01:43.4]} 26... Bxf2 {[%clk 0:02:45.2]} 27. Ne4 {[%clk
0:01:37.9]} 27... Bd4 {[%clk 0:02:41.7]} 28. b3 {[%clk 0:01:34.8]} 28... Ne7+
{[%clk 0:02:40.2]} 29. Kf4 {[%clk 0:01:33.2]} 29... Nd5+ {[%clk 0:02:40]} 30.
Kg3 {[%clk 0:01:31.6]} 30... Be5+ {[%clk 0:02:36.6]} 31. Kf2 {[%clk 0:01:31.9]}
31... b6 {[%clk 0:02:33.6]} 32. Nh4 {[%clk 0:01:27.6]} 32... Ne7 {[%clk
0:02:27.1]} 33. Kf3 {[%clk 0:01:20.2]} 33... f5 {[%clk 0:02:26.2]} 34. Nf2
{[%clk 0:01:16]} 34... Kg7 {[%clk 0:02:26.8]} 35. g3 {[%clk 0:01:16.3]} 35...
Kf6 {[%clk 0:02:28]} 36. Nd3 {[%clk 0:01:17.6]} 36... a5 {[%clk 0:02:25.9]} 37.
Ng2 {[%clk 0:01:17.1]} 37... Nc6 {[%clk 0:02:26.3]} 38. Ne3 {[%clk 0:01:17.1]}
38... b5 {[%clk 0:02:23.8]} 39. Ke2 {[%clk 0:01:10]} 39... Bd6 {[%clk
0:02:22.4]} 40. Kf3 {[%clk 0:01:09.5]} 40... Ke6 {[%clk 0:02:22.8]} 41. Nf4+
{[%clk 0:01:04.1]} 41... Bxf4 {[%clk 0:02:23.8]} 42. Kxf4 {[%clk 0:01:05.1]}
42... Nd4 {[%clk 0:02:25.7]} 43. g4 {[%clk 0:00:59]} 43... fxg4 {[%clk
0:02:26.6]} 44. Nxg4 {[%clk 0:00:58]} 44... h5 {[%clk 0:02:26]} 45. Ne3 {[%clk
0:00:57.9]} 45... f5 {[%clk 0:02:25.1]} 46. h4 {[%clk 0:00:55.3]} 46... Ne2+
{[%clk 0:02:25.5]} 47. Kg5 {[%clk 0:00:53.6]} 47... f4 {[%clk 0:02:25.7]} 48.
Nd1 {[%clk 0:00:54.5]} 48... Ke5 {[%clk 0:02:24.9]} 49. Kxh5 {[%clk 0:00:54.7]}
49... Kf5 {[%clk 0:02:25.6]} 50. Nf2 {[%clk 0:00:52.2]} 50... Nc3 {[%clk
0:02:24.9]} 51. Kh6 {[%clk 0:00:53.3]} 51... Nxa2 {[%clk 0:02:22.3]} 52. h5
{[%clk 0:00:52.9]} 52... a4 {[%clk 0:02:19.6]} 53. Kg7 {[%clk 0:00:46.6]} 53...
Nc1 {[%clk 0:02:20.5]} 54. bxa4 {[%clk 0:00:33]} 54... bxa4 {[%clk 0:02:21.4]}
55. h6 {[%clk 0:00:34]} 55... a3 {[%clk 0:02:22.5]} 56. h7 {[%clk 0:00:35.2]}
56... a2 {[%clk 0:02:23.8]} 57. h8=Q {[%clk 0:00:36.5]} 57... a1=Q+ {[%clk
0:02:24.7]} 58. Kh7 {[%clk 0:00:38.4]} 58... Qa7+ {[%clk 0:02:25.3]} 59. Qg7
{[%clk 0:00:38.7]} 59... Qxf2 {[%clk 0:02:26.2]} 60. Qg6+ {[%clk 0:00:33.9]}
60... Ke5 {[%clk 0:02:27.3]} 61. Qg7+ {[%clk 0:00:29.9]} 61... Ke4 {[%clk
0:02:28.1]} 62. Qb7+ {[%clk 0:00:30.8]} 62... Ke3 {[%clk 0:02:28.9]} 63. Qb6+
{[%clk 0:00:31]} 63... Ke2 {[%clk 0:02:29.8]} 64. Qxb4 {[%clk 0:00:28.6]} 64...
Qe3 {[%clk 0:02:31]} 65. Qc4+ {[%clk 0:00:28.4]} 65... Kd2 {[%clk 0:02:32]} 0-1

[Event "*** Titled Tuesday Blitz"]
[Site "Chess.com"]
[Date "2019.09.03"]
[Round "5"]
[White "plumalka"]
[Black "Keithonsky"]
[Result "1/2-1/2"]
[WhiteElo "2148"]
[BlackElo "2369"]
[TimeControl "180+2"]
[EndTime "16:06:11 PDT"]
[Termination "Game drawn by repetition"]

1. e4 {[%clk 0:02:59.6]} 1... c6 {[%clk 0:02:57.8]} 2. d4 {[%clk 0:03:00.3]}
2... d5 {[%clk 0:02:56.2]} 3. e5 {[%clk 0:03:01.7]} 3... c5 {[%clk 0:02:53]} 4.
dxc5 {[%clk 0:03:02.7]} 4... e6 {[%clk 0:02:54.6]} 5. Be3 {[%clk 0:03:03.3]}
5... Qc7 {[%clk 0:02:55.6]} 6. Nf3 {[%clk 0:03:03.1]} 6... Bxc5 {[%clk
0:02:57.2]} 7. Bxc5 {[%clk 0:02:59.3]} 7... Qxc5 {[%clk 0:02:59.1]} 8. Nd4
{[%clk 0:02:59.7]} 8... Qb4+ {[%clk 0:02:51.5]} 9. Nc3 {[%clk 0:02:35.9]} 9...
a6 {[%clk 0:02:43.9]} 10. Nb3 {[%clk 0:02:27.8]} 10... Nc6 {[%clk 0:02:42.5]}
11. a3 {[%clk 0:02:27]} 11... Qb6 {[%clk 0:02:43.1]} 12. Qe2 {[%clk 0:02:19]}
12... Nge7 {[%clk 0:02:41.8]} 13. h4 {[%clk 0:02:19.3]} 13... Ng6 {[%clk
0:02:41.8]} 14. h5 {[%clk 0:02:19.9]} 14... Ngxe5 {[%clk 0:02:42.8]} 15. h6
{[%clk 0:02:18.9]} 15... g6 {[%clk 0:02:44.2]} 16. f4 {[%clk 0:02:18.6]} 16...
Nc4 {[%clk 0:02:44.1]} 17. Nxd5 {[%clk 0:02:18.8]} 17... Qd8 {[%clk 0:02:37.4]}
18. Qxc4 {[%clk 0:02:19.2]} 18... exd5 {[%clk 0:02:38.7]} 19. Qe2+ {[%clk
0:02:18.6]} 19... Qe7 {[%clk 0:02:36.3]} 20. O-O-O {[%clk 0:02:19.3]} 20... Be6
{[%clk 0:02:31.4]} 21. Qf3 {[%clk 0:02:12.6]} 21... O-O-O {[%clk 0:02:30.8]} 22.
Bd3 {[%clk 0:02:12.7]} 22... Rhe8 {[%clk 0:02:25.4]} 23. Rhe1 {[%clk 0:02:12.9]}
23... Qf8 {[%clk 0:02:26.9]} 24. f5 {[%clk 0:02:00.4]} 24... gxf5 {[%clk
0:02:25.9]} 25. Bxf5 {[%clk 0:02:01.6]} 25... Qxh6+ {[%clk 0:02:27.6]} 26. Kb1
{[%clk 0:02:02.4]} 26... Kb8 {[%clk 0:02:27.9]} 27. Nc5 {[%clk 0:02:00.6]} 27...
Bxf5 {[%clk 0:02:23]} 28. Qxf5 {[%clk 0:02:02.5]} 28... Rxe1 {[%clk 0:02:11.4]}
29. Rxe1 {[%clk 0:02:02.4]} 29... Qd2 {[%clk 0:02:10.5]} 30. Rf1 {[%clk
0:01:56.1]} 30... Re8 {[%clk 0:01:54.6]} 31. Qxf7 {[%clk 0:01:46]} 31... Re7
{[%clk 0:01:54.9]} 32. Qf4+ {[%clk 0:01:45.8]} 32... Qxf4 {[%clk 0:01:54.5]} 33.
Rxf4 {[%clk 0:01:47.7]} 33... Re1+ {[%clk 0:01:55.5]} 34. Ka2 {[%clk 0:01:48]}
34... Re2 {[%clk 0:01:57.4]} 35. Rh4 {[%clk 0:01:43.4]} 35... Rxc2 {[%clk
0:01:57.2]} 36. Rxh7 {[%clk 0:01:44.4]} 36... Rxc5 {[%clk 0:01:57.9]} 37. g4
{[%clk 0:01:44.1]} 37... Rc4 {[%clk 0:01:58.6]} 38. g5 {[%clk 0:01:44.7]} 38...
Rg4 {[%clk 0:02:00.2]} 39. Rg7 {[%clk 0:01:43.4]} 39... d4 {[%clk 0:02:01.7]}
40. g6 {[%clk 0:01:42.2]} 40... Ne5 {[%clk 0:02:03.2]} 41. Rg8+ {[%clk
0:01:40.9]} 41... Kc7 {[%clk 0:02:04]} 42. g7 {[%clk 0:01:42.1]} 42... d3 {[%clk
0:02:05.6]} 43. Kb3 {[%clk 0:01:42.8]} 43... a5 {[%clk 0:01:59.6]} 44. Re8
{[%clk 0:01:41.8]} 44... Rxg7 {[%clk 0:01:49.5]} 45. Rxe5 {[%clk 0:01:42]} 45...
Rd7 {[%clk 0:01:51.4]} 46. Re1 {[%clk 0:01:33.5]} 46... Kb6 {[%clk 0:01:52.8]}
47. Kc4 {[%clk 0:01:33.2]} 47... a4 {[%clk 0:01:49]} 48. Rd1 {[%clk 0:01:32.6]}
48... d2 {[%clk 0:01:50.2]} 49. Kc3 {[%clk 0:01:27.1]} 49... Kc5 {[%clk
0:01:48.4]} 50. Rxd2 {[%clk 0:01:24.7]} 50... Rh7 {[%clk 0:01:36.4]} 51. Rd3
{[%clk 0:01:23.6]} 51... Rh4 {[%clk 0:01:36.9]} 52. Rf3 {[%clk 0:01:24.5]} 52...
Rc4+ {[%clk 0:01:37.4]} 53. Kd3 {[%clk 0:01:25.6]} 53... Rg4 {[%clk 0:01:36.2]}
54. Rf5+ {[%clk 0:01:24.7]} 54... Kb6 {[%clk 0:01:37.7]} 55. Kc3 {[%clk
0:01:24.7]} 55... Ka6 {[%clk 0:01:39.1]} 56. Rd5 {[%clk 0:01:24.4]} 56... b5
{[%clk 0:01:38.3]} 57. Rd4 {[%clk 0:01:21.1]} 57... Rg3+ {[%clk 0:01:35.5]} 58.
Rd3 {[%clk 0:01:22]} 58... Rg6 {[%clk 0:01:37]} 59. Rd4 {[%clk 0:01:22]} 59...
Kb6 {[%clk 0:01:38.4]} 60. Kb4 {[%clk 0:01:21.5]} 60... Rh6 {[%clk 0:01:36.2]}
61. b3 {[%clk 0:01:20.2]} 61... axb3 {[%clk 0:01:36.6]} 62. Kxb3 {[%clk
0:01:21.7]} 62... Kc5 {[%clk 0:01:38.5]} 63. Rd3 {[%clk 0:01:22.4]} 63... Rh1
{[%clk 0:01:38.7]} 64. Rc3+ {[%clk 0:01:22.5]} 64... Kb6 {[%clk 0:01:40.4]} 65.
Rc2 {[%clk 0:01:23.2]} 65... Ka5 {[%clk 0:01:41.2]} 66. Rc3 {[%clk 0:01:24.2]}
66... Rb1+ {[%clk 0:01:41.9]} 67. Kc2 {[%clk 0:01:22.7]} 67... Re1 {[%clk
0:01:41.5]} 68. Kb3 {[%clk 0:01:24.1]} 68... Re4 {[%clk 0:01:43]} 69. Rd3 {[%clk
0:01:24.6]} 69... Rc4 {[%clk 0:01:44.2]} 70. Rc3 {[%clk 0:01:25.5]} 70... Rh4
{[%clk 0:01:45.2]} 71. Rd3 {[%clk 0:01:26.5]} 71... Kb6 {[%clk 0:01:46.7]} 72.
Rc3 {[%clk 0:01:26.5]} 72... Rh1 {[%clk 0:01:48.4]} 73. Rc2 {[%clk 0:01:27.4]}
73... Rb1+ {[%clk 0:01:48.2]} 74. Rb2 {[%clk 0:01:28.1]} 74... Rh1 {[%clk
0:01:49.4]} 75. Rc2 {[%clk 0:01:29.2]} 1/2-1/2

[Event "*** Titled Tuesday Blitz"]
[Site "Chess.com"]
[Date "2019.09.03"]
[Round "5"]
[White "Shahinyan_ChessMood"]
[Black "albi1999"]
[Result "1-0"]
[WhiteElo "2680"]
[BlackElo "2484"]
[TimeControl "180+2"]
[EndTime "16:06:16 PDT"]
[Termination "Shahinyan_ChessMood won by resignation"]

1. e4 {[%clk 0:02:58.5]} 1... e5 {[%clk 0:03:00.2]} 2. Nf3 {[%clk 0:02:58.6]}
2... Nc6 {[%clk 0:03:01.1]} 3. Bc4 {[%clk 0:02:59.9]} 3... Bc5 {[%clk 0:03:01]}
4. O-O {[%clk 0:02:54.6]} 4... Nf6 {[%clk 0:03:00.6]} 5. d4 {[%clk 0:02:55.1]}
5... Bxd4 {[%clk 0:03:01.4]} 6. Nxd4 {[%clk 0:02:55.7]} 6... Nxd4 {[%clk
0:03:03.3]} 7. f4 {[%clk 0:02:56.9]} 7... d6 {[%clk 0:03:04.9]} 8. fxe5 {[%clk
0:02:58.8]} 8... dxe5 {[%clk 0:03:06.8]} 9. Bg5 {[%clk 0:03:00.6]} 9... Qe7
{[%clk 0:03:07.8]} 10. Na3 {[%clk 0:03:00.1]} 10... Be6 {[%clk 0:03:07.5]} 11.
c3 {[%clk 0:03:01.1]} 11... Bxc4 {[%clk 0:03:02.1]} 12. Nxc4 {[%clk 0:03:02]}
12... Ne6 {[%clk 0:03:02.7]} 13. Bh4 {[%clk 0:03:03.9]} 13... Qc5+ {[%clk
0:02:59.3]} 14. Kh1 {[%clk 0:02:57]} 14... Qxc4 {[%clk 0:02:59.7]} 15. Bxf6
{[%clk 0:02:58.9]} 15... gxf6 {[%clk 0:03:00.8]} 16. Rxf6 {[%clk 0:02:59.5]}
16... Qxe4 {[%clk 0:02:59.7]} 17. Qd2 {[%clk 0:02:41.7]} 17... Rg8 {[%clk
0:02:51]} 18. Re1 {[%clk 0:02:41.4]} 18... Qc6 {[%clk 0:02:44.9]} 19. Rf2 {[%clk
0:02:27.9]} 19... Qd6 {[%clk 0:02:39.7]} 20. Qe3 {[%clk 0:02:24.2]} 20... Qc5
{[%clk 0:02:25.2]} 21. Qd2 {[%clk 0:02:13.7]} 21... Rd8 {[%clk 0:02:22.7]} 22.
Qe2 {[%clk 0:02:13.8]} 22... e4 {[%clk 0:02:18.5]} 23. Qf1 {[%clk 0:02:07.4]}
23... Qh5 {[%clk 0:02:11.8]} 24. h3 {[%clk 0:01:59.2]} 24... Qg6 {[%clk
0:02:05]} 25. Qb5+ {[%clk 0:01:58.2]} 25... Kf8 {[%clk 0:01:59.8]} 26. Qxb7
{[%clk 0:01:57.3]} 26... e3 {[%clk 0:01:57.5]} 27. Rxe3 {[%clk 0:01:53.6]} 27...
Rd1+ {[%clk 0:01:53]} 28. Kh2 {[%clk 0:01:53.9]} 28... Qb1 {[%clk 0:01:43.7]}
29. Qb8+ {[%clk 0:01:26.3]} 29... Kg7 {[%clk 0:01:37.8]} 30. Rg3+ {[%clk
0:01:24.6]} 30... Kh6 {[%clk 0:01:36.5]} 31. Rxg8 {[%clk 0:01:19.2]} 31... Rh1+
{[%clk 0:01:34.9]} 32. Kg3 {[%clk 0:01:19.6]} 32... Qd3+ {[%clk 0:01:31.6]} 33.
Rf3 {[%clk 0:01:20]} 33... Qd6+ {[%clk 0:01:28.1]} 34. Kh4 {[%clk 0:01:08.8]}
34... Re1 {[%clk 0:01:18]} 35. Qb4 {[%clk 0:01:01.5]} 35... Qe5 {[%clk
0:01:19.2]} 36. g4 {[%clk 0:00:41.4]} 36... Re4 {[%clk 0:00:45.7]} 37. Qxe4
{[%clk 0:00:41.1]} 37... Qxe4 {[%clk 0:00:45.5]} 38. Rf6+ {[%clk 0:00:41.2]}
38... Qg6 {[%clk 0:00:40]} 39. Rgxg6+ {[%clk 0:00:33.7]} 39... hxg6 {[%clk
0:00:39.7]} 40. Rxf7 {[%clk 0:00:34.8]} 40... Ng5 {[%clk 0:00:39.5]} 41. Rxc7
{[%clk 0:00:29.2]} 41... Ne4 {[%clk 0:00:37]} 42. g5+ {[%clk 0:00:29.7]} 1-0

[Event "*** Titled Tuesday Blitz"]
[Site "Chess.com"]
[Date "2019.09.03"]
[Round "5"]
[White "MarshKnight"]
[Black "Induwara_IM"]
[Result "1-0"]
[WhiteElo "2204"]
[BlackElo "2378"]
[TimeControl "180+2"]
[EndTime "16:06:20 PDT"]
[Termination "MarshKnight won by checkmate"]

1. e4 {[%clk 0:03:01.9]} 1... c6 {[%clk 0:02:52]} 2. d4 {[%clk 0:03:02.1]} 2...
d5 {[%clk 0:02:53.4]} 3. Nc3 {[%clk 0:03:03.5]} 3... dxe4 {[%clk 0:02:53.3]} 4.
Nxe4 {[%clk 0:03:04.6]} 4... Nf6 {[%clk 0:02:53.2]} 5. Nxf6+ {[%clk 0:03:05.9]}
5... exf6 {[%clk 0:02:55.1]} 6. c3 {[%clk 0:03:06.9]} 6... Bd6 {[%clk
0:02:56.4]} 7. Bd3 {[%clk 0:03:08.6]} 7... O-O {[%clk 0:02:57.3]} 8. Qc2 {[%clk
0:03:10.3]} 8... Re8+ {[%clk 0:02:56.6]} 9. Ne2 {[%clk 0:03:11.9]} 9... h5
{[%clk 0:02:57.9]} 10. Be3 {[%clk 0:03:12.3]} 10... Na6 {[%clk 0:02:50.7]} 11.
O-O-O {[%clk 0:03:10.6]} 11... Nc7 {[%clk 0:02:51.8]} 12. Ng3 {[%clk 0:03:03]}
12... h4 {[%clk 0:02:49.9]} 13. Nf5 {[%clk 0:02:55]} 13... Bxf5 {[%clk
0:02:43.3]} 14. Bxf5 {[%clk 0:02:56.9]} 14... Nd5 {[%clk 0:02:44.5]} 15. Rhe1
{[%clk 0:02:46.6]} 15... Qa5 {[%clk 0:02:35.8]} 16. Kb1 {[%clk 0:02:47]} 16...
b5 {[%clk 0:02:21.4]} 17. g3 {[%clk 0:02:41.3]} 17... b4 {[%clk 0:02:09.9]} 18.
c4 {[%clk 0:02:42.4]} 18... Nc3+ {[%clk 0:02:08.4]} 19. bxc3 {[%clk 0:02:22.1]}
19... bxc3 {[%clk 0:02:10.3]} 20. Ka1 {[%clk 0:02:23.4]} 20... Ba3 {[%clk
0:02:08.2]} 21. Bc1 {[%clk 0:02:22.2]} 21... Bb2+ {[%clk 0:01:48.2]} 22. Kb1
{[%clk 0:01:27.1]} 22... Reb8 {[%clk 0:01:29.7]} 23. Bf4 {[%clk 0:01:12.9]}
23... Rb4 {[%clk 0:01:14.2]} 24. Bd6 {[%clk 0:01:09.3]} 24... Rb7 {[%clk
0:01:00.2]} 25. Re7 {[%clk 0:00:46.5]} 25... Rxe7 {[%clk 0:00:59.9]} 26. Bxe7
{[%clk 0:00:47.6]} 26... Rb8 {[%clk 0:00:45.4]} 27. Bd6 {[%clk 0:00:48.6]} 27...
Rb7 {[%clk 0:00:45.9]} 28. Bc8 {[%clk 0:00:40.4]} 28... Rb6 {[%clk 0:00:38.8]}
29. Bc7 {[%clk 0:00:41]} 29... hxg3 {[%clk 0:00:14.3]} 30. Bxb6 {[%clk
0:00:37.9]} 30... Qxb6 {[%clk 0:00:15.6]} 31. Qb3 {[%clk 0:00:34.9]} 31... Qc7
{[%clk 0:00:16.4]} 32. Qb7 {[%clk 0:00:25.7]} 32... Qf4 {[%clk 0:00:16.9]} 33.
Kc2 {[%clk 0:00:09]} 33... gxf2 {[%clk 0:00:11.9]} 34. Qd7 {[%clk 0:00:05.6]}
34... f1=Q {[%clk 0:00:11.7]} 35. Rxf1 {[%clk 0:00:06.7]} 35... Qxf1 {[%clk
0:00:12.4]} 36. Qe8+ {[%clk 0:00:06.1]} 36... Kh7 {[%clk 0:00:13.7]} 37. Qxf7
{[%clk 0:00:06.4]} 37... Qf2+ {[%clk 0:00:12.6]} 38. Kb3 {[%clk 0:00:07.5]}
38... Ba1 {[%clk 0:00:10]} 39. Qh5+ {[%clk 0:00:08.2]} 39... Kg8 {[%clk
0:00:11.3]} 40. Be6+ {[%clk 0:00:09.7]} 40... Kf8 {[%clk 0:00:11.8]} 41. Qf7#
{[%clk 0:00:11.3]} 1-0

[Event "*** Titled Tuesday Blitz"]
[Site "Chess.com"]
[Date "2019.09.03"]
[Round "5"]
[White "Kimster98"]
[Black "vova-79"]
[Result "1-0"]
[WhiteElo "2612"]
[BlackElo "2389"]
[TimeControl "180+2"]
[EndTime "16:06:30 PDT"]
[Termination "Kimster98 won on time"]

1. e4 {[%clk 0:03:01.9]} 1... e6 {[%clk 0:03:00.1]} 2. d4 {[%clk 0:03:02.5]}
2... d5 {[%clk 0:03:00.7]} 3. Nc3 {[%clk 0:03:02.8]} 3... dxe4 {[%clk 0:03:01]}
4. Nxe4 {[%clk 0:03:03.7]} 4... Nd7 {[%clk 0:03:02.6]} 5. Nf3 {[%clk 0:03:02]}
5... Ngf6 {[%clk 0:03:03.9]} 6. Bd3 {[%clk 0:03:01.4]} 6... c5 {[%clk
0:03:03.2]} 7. O-O {[%clk 0:02:56.5]} 7... Nxe4 {[%clk 0:03:02.9]} 8. Bxe4
{[%clk 0:02:58.4]} 8... Nf6 {[%clk 0:03:04.3]} 9. Bg5 {[%clk 0:02:59.2]} 9...
cxd4 {[%clk 0:03:03.3]} 10. Nxd4 {[%clk 0:02:58.8]} 10... Be7 {[%clk 0:03:00.6]}
11. Bd3 {[%clk 0:02:37.6]} 11... O-O {[%clk 0:02:32.3]} 12. Re1 {[%clk
0:02:33.5]} 12... Qd5 {[%clk 0:02:26.1]} 13. Bf4 {[%clk 0:02:28.3]} 13... Rd8
{[%clk 0:02:22.1]} 14. c3 {[%clk 0:02:28.4]} 14... Bd6 {[%clk 0:02:05.8]} 15.
Bxd6 {[%clk 0:02:26.5]} 15... Qxd6 {[%clk 0:02:05.3]} 16. Qe2 {[%clk 0:02:26.2]}
16... b6 {[%clk 0:01:55.2]} 17. Rad1 {[%clk 0:02:17.5]} 17... Bb7 {[%clk
0:01:55.2]} 18. Nf3 {[%clk 0:02:12.7]} 18... Qc6 {[%clk 0:01:49.4]} 19. Bb5
{[%clk 0:02:11.2]} 19... Qe4 {[%clk 0:01:44.5]} 20. Qxe4 {[%clk 0:02:11.5]}
20... Bxe4 {[%clk 0:01:43.8]} 21. Nd4 {[%clk 0:02:08.9]} 21... Kf8 {[%clk
0:01:31.9]} 22. f3 {[%clk 0:01:57]} 22... Bb7 {[%clk 0:01:31.4]} 23. Bc6 {[%clk
0:01:57.2]} 23... Bxc6 {[%clk 0:01:27.1]} 24. Nxc6 {[%clk 0:01:59.1]} 24... Rdc8
{[%clk 0:01:28]} 25. Ne5 {[%clk 0:02:00.2]} 25... Rd8 {[%clk 0:01:27.7]} 26. Nc6
{[%clk 0:02:00.6]} 26... Rdc8 {[%clk 0:01:27.1]} 27. Ne5 {[%clk 0:02:01.8]}
27... Rd8 {[%clk 0:01:27.8]} 28. Kf2 {[%clk 0:02:02.9]} 28... Ne8 {[%clk
0:01:19.1]} 29. Ke3 {[%clk 0:01:59.7]} 29... f6 {[%clk 0:01:18.8]} 30. Nc6
{[%clk 0:02:00.2]} 30... Rdc8 {[%clk 0:01:16.5]} 31. Nd4 {[%clk 0:01:55.8]}
31... e5 {[%clk 0:01:16.5]} 32. Nb5 {[%clk 0:01:55.9]} 32... Ke7 {[%clk
0:01:14.5]} 33. Rd2 {[%clk 0:01:54.5]} 33... a6 {[%clk 0:01:15]} 34. Na3 {[%clk
0:01:54.4]} 34... Rd8 {[%clk 0:01:15.3]} 35. Red1 {[%clk 0:01:54.9]} 35... Rxd2
{[%clk 0:01:07]} 36. Rxd2 {[%clk 0:01:56.8]} 36... Rd8 {[%clk 0:01:07.2]} 37.
Nc4 {[%clk 0:01:43.5]} 37... Rxd2 {[%clk 0:01:05.8]} 38. Nxd2 {[%clk 0:01:45.4]}
38... Kd6 {[%clk 0:01:03.9]} 39. b4 {[%clk 0:01:42.4]} 39... b5 {[%clk
0:00:58.7]} 40. c4 {[%clk 0:01:43.1]} 40... bxc4 {[%clk 0:00:58.1]} 41. Nxc4+
{[%clk 0:01:45]} 41... Kd5 {[%clk 0:00:59]} 42. Kd3 {[%clk 0:01:44.9]} 42... f5
{[%clk 0:00:58.6]} 43. Ne3+ {[%clk 0:01:44.6]} 43... Ke6 {[%clk 0:00:58.4]} 44.
Kc4 {[%clk 0:01:45.9]} 44... g5 {[%clk 0:00:47.3]} 45. Kc5 {[%clk 0:01:38.4]}
45... Nd6 {[%clk 0:00:43.8]} 46. Kb6 {[%clk 0:01:33.9]} 46... f4 {[%clk
0:00:42.1]} 47. Nd1 {[%clk 0:01:33.7]} 47... Nc4+ {[%clk 0:00:32.7]} 48. Kxa6
{[%clk 0:01:34.5]} 48... Ne3 {[%clk 0:00:34.2]} 49. b5 {[%clk 0:01:17]} 49...
Nxd1 {[%clk 0:00:06.9]} 50. b6 {[%clk 0:01:17.6]} 1-0

[Event "*** Titled Tuesday Blitz"]
[Site "Chess.com"]
[Date "2019.09.03"]
[Round "5"]
[White "NicoChasin"]
[Black "jorquerino"]
[Result "0-1"]
[WhiteElo "2478"]
[BlackElo "2316"]
[TimeControl "180+2"]
[EndTime "16:06:33 PDT"]
[Termination "jorquerino won by resignation"]

1. e4 {[%clk 0:03:01.9]} 1... d5 {[%clk 0:03:00.3]} 2. exd5 {[%clk 0:02:41]}
2... Nf6 {[%clk 0:03:00.4]} 3. d4 {[%clk 0:02:19.8]} 3... Bg4 {[%clk 0:02:59.3]}
4. Be2 {[%clk 0:02:20.1]} 4... Bxe2 {[%clk 0:02:57.8]} 5. Nxe2 {[%clk 0:02:22]}
5... Qxd5 {[%clk 0:02:58.3]} 6. O-O {[%clk 0:02:22.8]} 6... Nc6 {[%clk
0:02:58.5]} 7. b3 {[%clk 0:02:23.9]} 7... O-O-O {[%clk 0:02:56.2]} 8. c4 {[%clk
0:02:24.5]} 8... Qh5 {[%clk 0:02:55.7]} 9. d5 {[%clk 0:02:23.4]} 9... e6 {[%clk
0:02:55.4]} 10. Nf4 {[%clk 0:02:19]} 10... Qxd1 {[%clk 0:02:51.8]} 11. Rxd1
{[%clk 0:02:18.4]} 11... exd5 {[%clk 0:02:45.5]} 12. cxd5 {[%clk 0:02:17.5]}
12... Nb4 {[%clk 0:02:30.9]} 13. Nc3 {[%clk 0:02:17.9]} 13... Bd6 {[%clk
0:02:30.1]} 14. a3 {[%clk 0:02:01.5]} 14... Bxf4 {[%clk 0:02:24.7]} 15. axb4
{[%clk 0:02:01.3]} 15... Bxc1 {[%clk 0:02:25]} 16. Raxc1 {[%clk 0:02:01.6]}
16... Rhe8 {[%clk 0:02:08.9]} 17. d6 {[%clk 0:01:47.4]} 17... c6 {[%clk
0:01:59.3]} 18. b5 {[%clk 0:01:46.8]} 18... Re6 {[%clk 0:01:39.1]} 19. bxc6
{[%clk 0:01:26.5]} 19... bxc6 {[%clk 0:01:39.6]} 20. Ra1 {[%clk 0:00:21.5]}
20... Kb8 {[%clk 0:01:26.5]} 21. g3 {[%clk 0:00:17.7]} 21... Rexd6 {[%clk
0:01:26.8]} 22. Rxd6 {[%clk 0:00:18.7]} 22... Rxd6 {[%clk 0:01:27.4]} 23. Re1
{[%clk 0:00:20.6]} 23... Re6 {[%clk 0:01:24.5]} 24. Rxe6 {[%clk 0:00:20.5]}
24... fxe6 {[%clk 0:01:25.1]} 25. Kf1 {[%clk 0:00:22.4]} 25... Kc7 {[%clk
0:01:23.3]} 26. Ke2 {[%clk 0:00:23.6]} 26... a5 {[%clk 0:01:20.7]} 27. Kd3
{[%clk 0:00:24.9]} 27... Kd6 {[%clk 0:01:18.8]} 28. Kc4 {[%clk 0:00:23.2]} 28...
Nd7 {[%clk 0:01:10.2]} 29. Ne4+ {[%clk 0:00:21.3]} 29... Ke5 {[%clk 0:01:10.3]}
30. Ng5 {[%clk 0:00:19.8]} 30... h6 {[%clk 0:01:03.7]} 31. Nf7+ {[%clk
0:00:20.8]} 31... Kf6 {[%clk 0:00:30.3]} 32. Nd8 {[%clk 0:00:21]} 32... Nb6+
{[%clk 0:00:31.3]} 33. Kc5 {[%clk 0:00:21.7]} 33... a4 {[%clk 0:00:32.5]} 34.
bxa4 {[%clk 0:00:19.1]} 34... Nxa4+ {[%clk 0:00:33.3]} 35. Kxc6 {[%clk
0:00:20.7]} 35... Nc3 {[%clk 0:00:34.1]} 36. Kd6 {[%clk 0:00:21.7]} 36... Ne4+
{[%clk 0:00:34.3]} 37. Kd7 {[%clk 0:00:23.2]} 37... e5 {[%clk 0:00:32.2]} 38. f3
{[%clk 0:00:23.6]} 38... Nd2 {[%clk 0:00:32.2]} 39. f4 {[%clk 0:00:24.9]} 39...
e4 {[%clk 0:00:32.1]} 40. Ne6 {[%clk 0:00:24.3]} 40... Nb3 {[%clk 0:00:28.2]}
41. Nc7 {[%clk 0:00:20.1]} 41... Kf5 {[%clk 0:00:19.5]} 42. Nd5 {[%clk
0:00:20.4]} 42... h5 {[%clk 0:00:19.1]} 43. h3 {[%clk 0:00:20.9]} 43... Nd4
{[%clk 0:00:17.7]} 44. Ne3+ {[%clk 0:00:21.8]} 44... Kf6 {[%clk 0:00:17.8]} 45.
Kd6 {[%clk 0:00:23.2]} 45... Nf5+ {[%clk 0:00:17.5]} 46. Nxf5 {[%clk 0:00:22.9]}
46... Kxf5 {[%clk 0:00:18.5]} 0-1